fUST/lending_fUST_20250718
["ID","MTS","AMOUNT","RATE_DAILY","PERIOD"]
[372936344,1752814246618,-618.09,0.00016712,2]
[372936345,1752814246628,-460.0,0.00016712,2]
[372936346,1752814246638,-460.0,0.00016712,2]
[372936347,1752814246647,-460.0,0.00016712,2]
[372936348,1752814246657,-460.0,0.00016712,2]
[372936349,1752814246794,-460.0,0.00016712,2]
[372936350,1752814246805,-4686.52,0.00016712,2]
[372936351,1752814246814,-460.0,0.00016712,2]
[372936352,1752814246824,-460.0,0.00016712,2]
[372936353,1752814246835,-460.0,0.00016712,2]
[372936354,1752814246845,-723.7,0.00016712,2]
[372936355,1752814246855,-460.0,0.00016712,2]
[372936356,1752814246865,-460.0,0.00016712,2]
[372936357,1752814246875,-460.0,0.00016712,2]
[372936358,1752814246885,-460.0,0.00016712,2]
[372936359,1752814246894,-469.47093368,0.00016712,2]
[372936360,1752814246904,-460.0,0.00016712,2]
[372936361,1752814246913,-460.0,0.00016712,2]
[372936362,1752814246923,-460.0,0.00016712,2]
[372936363,1752814246932,-460.0,0.00016712,2]
[372936364,1752814246943,-460.0,0.00016712,2]
[372936365,1752814246953,-460.0,0.00016712,2]
[372936366,1752814246964,-460.0,0.00016712,2]
[372936367,1752814246974,-1372.5,0.00016712,2]
[372936368,1752814246983,-460.0,0.00016712,2]
[372936369,1752814246994,-898.43,0.00016712,2]
[372936370,1752814247004,-3660.04,0.00016712,2]
[372936371,1752814247013,-460.0,0.00016712,2]
[372936372,1752814247023,-908.6,0.00016712,2]
[372936373,1752814247032,-3275.21,0.00016712,2]
[372936374,1752814247042,-1144.81,0.00016712,2]
[372936375,1752814247053,-460.0,0.00016712,2]
[372936376,1752814247064,-460.0,0.00016712,2]
[372936377,1752814247075,-460.0,0.00016712,2]
[372936378,1752814247085,-460.0,0.00016712,2]
[372936379,1752814247095,-899.51,0.00016712,2]
[372936380,1752814247104,-460.0,0.00016712,2]
[372936381,1752814247114,-460.0,0.00016712,2]
[372936382,1752814247123,-460.0,0.00016712,2]
[372936383,1752814247133,-460.0,0.00016712,2]
[372936384,1752814247143,-460.0,0.00016712,2]
[372936385,1752814247155,-460.0,0.00016712,2]
[372936386,1752814247166,-460.0,0.00016712,2]
[372936387,1752814247176,-460.0,0.00016712,2]
[372936388,1752814247186,-884.48,0.00016712,2]
[372936389,1752814247196,-460.0,0.00016712,2]
[372936390,1752814247212,-965.48,0.00016712,2]
[372936391,1752814247221,-464.45555877,0.00016712,2]
[372936392,1752814247230,-888.06,0.00016712,2]
[372936393,1752814247241,-766.66,0.00016712,2]
[372936394,1752814247251,-460.0,0.00016712,2]
[372936395,1752814247261,-460.0,0.00016712,2]
[372936396,1752814247271,-538.99280133,0.00016712,2]
[372936397,1752814247280,-460.0,0.00016712,2]
[372936398,1752814247290,-460.0,0.00016712,2]
[372936399,1752814247299,-460.0,0.00016712,2]
[372936400,1752814247308,-460.0,0.00016712,2]
[372936401,1752814247317,-460.0,0.00016712,2]
[372936402,1752814247327,-1451.87,0.00016712,2]
[372936403,1752814247336,-460.0,0.00016712,2]
[372936404,1752814247346,-460.0,0.00016712,2]
[372936405,1752814247355,-461.92796004,0.00016712,2]
[372936406,1752814247364,-460.0,0.00016712,2]
[372936407,1752814247374,-460.0,0.00016712,2]
[372936408,1752814247384,-460.0,0.00016712,2]
[372936409,1752814247395,-460.0,0.00016712,2]
[372936410,1752814247404,-789.94,0.00016712,2]
[372936411,1752814247414,-460.0,0.00016712,2]
[372936412,1752814247423,-460.0,0.00016712,2]
[372936413,1752814247433,-3558.83,0.00016712,2]
[372936414,1752814247442,-1037.24,0.00016712,2]
[372936415,1752814247452,-460.0,0.00016712,2]
[372936416,1752814247464,-460.0,0.00016712,2]
[372936417,1752814247474,-652.7,0.00016712,2]
[372936418,1752814247483,-460.0,0.00016712,2]
[372936419,1752814247493,-460.0,0.00016712,2]
[372936420,1752814247503,-5829.63,0.00016712,2]
[372936421,1752814247512,-460.0,0.00016712,2]
[372936422,1752814247522,-460.0,0.00016712,2]
[372936423,1752814247531,-460.0,0.00016712,2]
[372936424,1752814247540,-462.43376462,0.00016712,2]
[372936425,1752814247550,-460.0,0.00016712,2]
[372936426,1752814247559,-460.0,0.00016712,2]
[372936427,1752814247569,-460.0,0.00016712,2]
[372936428,1752814247578,-460.0,0.00016712,2]
[372936429,1752814247588,-460.0,0.00016712,2]
[372936430,1752814247598,-460.0,0.00016712,2]
[372936431,1752814247608,-2475.6,0.00016712,2]
[372936432,1752814247618,-460.0,0.00016712,2]
[372936433,1752814247628,-460.0,0.00016712,2]
[372936434,1752814247637,-921.62,0.00016712,2]
[372936435,1752814247647,-460.0,0.00016712,2]
[372936436,1752814247657,-463.13315918,0.00016712,2]
[372936437,1752814247666,-727.58,0.00016712,2]
[372936438,1752814247676,-460.0,0.00016712,2]
[372936439,1752814247685,-460.0,0.00016712,2]
[372936440,1752814247695,-460.0,0.00016712,2]
[372936441,1752814247704,-2187.72,0.00016712,2]
[372936442,1752814247715,-460.0,0.00016712,2]
[372936443,1752814247725,-460.0,0.00016712,2]
[372936444,1752814247734,-1653.45,0.00016712,2]
[372936445,1752814247744,-785.77,0.00016712,2]
[372936446,1752814247756,-460.0,0.00016712,2]
[372936447,1752814247765,-460.0,0.00016712,2]
[372936448,1752814247774,-698.36,0.00016712,2]
[372936449,1752814247784,-1105.74,0.00016712,2]
[372936450,1752814247793,-460.0,0.00016712,2]
[372936451,1752814247804,-463.71305265,0.00016712,2]
[372936452,1752814247814,-822.88,0.00016712,2]
[372936453,1752814247823,-1074.47,0.00016712,2]
[372936454,1752814247834,-656.95,0.00016712,2]
[372936455,1752814247844,-460.0,0.00016712,2]
[372936456,1752814247854,-460.0,0.00016712,2]
[372936457,1752814247863,-460.0,0.00016712,2]
[372936458,1752814247872,-460.0,0.00016712,2]
[372936459,1752814247881,-462.99656138,0.00016712,2]
[372936460,1752814247890,-460.0,0.00016712,2]
[372936461,1752814247900,-460.0,0.00016712,2]
[372936462,1752814247909,-460.0,0.00016712,2]
[372936463,1752814247919,-410.72269936,0.00016712,2]
[372936464,1752814247928,-460.0,0.00016712,2]
[372936465,1752814247938,-1003.73,0.00016712,2]
[372936466,1752814247947,-460.0,0.00016712,2]
[372936467,1752814247957,-457.0395862,0.00016712,2]
[372936468,1752814247967,-464.18139787,0.00016712,2]
[372936469,1752814247976,-460.0,0.00016712,2]
[372936470,1752814247985,-809.59,0.00016712,2]
[372936471,1752814247995,-774.39,0.00016712,2]
[372936472,1752814248004,-460.0,0.00016712,2]
[372936473,1752814248014,-462.02494176,0.00016712,2]
[372936474,1752814248023,-199.86985584,0.00016712,2]
[372936475,1752814248033,-575.36,0.00016712,2]
[372936476,1752814248042,-460.0,0.00016712,2]
[372936477,1752814248051,-460.0,0.00016712,2]
[372936478,1752814248061,-460.0,0.00016712,2]
[372936479,1752814248070,-460.0,0.00016712,2]
[372936480,1752814248080,-460.0,0.00016712,2]
[372936481,1752814248090,-788.57,0.00016712,2]
[372936482,1752814248099,-815.73,0.00016712,2]
[372936483,1752814248108,-460.0,0.00016712,2]
[372936484,1752814248118,-3087.49,0.00016712,2]
[372936485,1752814248127,-703.98,0.00016712,2]
[372936486,1752814248137,-460.0,0.00016712,2]
[372936487,1752814248146,-733.98,0.00016712,2]
[372936488,1752814248155,-866.64,0.00016712,2]
[372936489,1752814248165,-1531.18,0.00016712,2]
[372936490,1752814248175,-480.23,0.00016712,2]
[372936491,1752814248184,-794.47,0.00016712,2]
[372936492,1752814248194,-460.0,0.00016712,2]
[372936493,1752814248204,-460.0,0.00016712,2]
[372936494,1752814248215,-7082.82,0.00016712,2]
[372936495,1752814248224,-460.0,0.00016712,2]
[372936496,1752814248233,-460.0,0.00016712,2]
[372936497,1752814248243,-460.0,0.00016712,2]
[372936498,1752814248253,-2241.65,0.00016712,2]
[372936499,1752814248262,-2622.92,0.00016712,2]
[372936500,1752814248271,-460.0,0.00016712,2]
[372936501,1752814248281,-5019.62,0.00016712,2]
[372936502,1752814248291,-460.0,0.00016712,2]
[372936503,1752814248300,-460.0,0.00016712,2]
[372936504,1752814248310,-460.0,0.00016712,2]
[372936505,1752814248319,-460.0,0.00016712,2]
[372936506,1752814248329,-460.0,0.00016712,2]
[372936507,1752814248340,-2466.27,0.00016712,2]
[372936508,1752814248349,-460.0,0.00016712,2]
[372936509,1752814248359,-460.0,0.00016712,2]
[372936510,1752814248368,-500.02925357,0.00016712,2]
[372936511,1752814248378,-500.0,0.00016773,2]
[372936512,1752814248387,-379.32138761,0.00016773,2]
[372936513,1752814248396,-500.0,0.00016773,2]
[372936514,1752814248406,-500.0,0.00016773,2]
[372936515,1752814248415,-500.68768249,0.00016773,2]
[372936516,1752814248424,-601.62375378,0.00016773,2]
[372936517,1752814248434,-513.88759956,0.00016773,2]
[372936518,1752814248443,-500.0,0.00016773,2]
[372936519,1752814248453,-500.0,0.00016773,2]
[372936520,1752814248463,-500.0,0.00016773,2]
[372936521,1752814248472,-501.10163726,0.00016773,2]
[372936522,1752814248482,-500.0,0.00016773,2]
[372936523,1752814248492,-500.0,0.00016773,2]
[372936524,1752814248502,-2945.44846307,0.00016886,2]
[372936525,1752814248512,-500.0,0.00016973,2]
[372936526,1752814248522,-500.0,0.00016973,2]
[372936527,1752814248531,-500.0,0.00016973,2]
[372936528,1752814248541,-500.0,0.00016973,2]
[372936529,1752814248550,-500.0,0.00016973,2]
[372936530,1752814248559,-501.83548984,0.00016973,2]
[372936531,1752814248568,-500.0,0.00016973,2]
[372936532,1752814248579,-500.0,0.00016973,2]
[372936533,1752814248588,-500.0,0.00016973,2]
[372936534,1752814248598,-500.0,0.00016973,2]
[372936535,1752814248608,-500.0,0.00016973,2]
[372936536,1752814248617,-460.0,0.00016986,2]
[372936537,1752814248627,-460.0,0.00016986,2]
[372936538,1752814248636,-460.0,0.00016986,2]
[372936539,1752814248646,-460.0,0.00016986,2]
[372936540,1752814248655,-460.0,0.00016986,2]
[372936541,1752814248665,-460.0,0.00016986,2]
[372936542,1752814248675,-460.0,0.00016986,2]
[372936543,1752814248685,-460.0,0.00016986,2]
[372936544,1752814248695,-460.0,0.00016986,2]
[372936545,1752814248704,-460.0,0.00016986,2]
[372936546,1752814248714,-460.0,0.00016986,2]
[372936547,1752814248724,-460.0,0.00016986,2]
[372936548,1752814248733,-465.43865547,0.00016986,2]
[372936549,1752814248743,-460.0,0.00016986,2]
[372936550,1752814248755,-460.0,0.00016986,2]
[372936551,1752814248764,-460.0,0.00016986,2]
[372936552,1752814248774,-460.0,0.00016986,2]
[372936553,1752814248783,-460.0,0.00016986,2]
[372936554,1752814248792,-306.40509691,0.00016986,2]
[372936555,1752814248803,-460.0,0.00016986,2]
[372936556,1752814248812,-460.0,0.00016986,2]
[372936557,1752814248821,-461.3476032,0.00016986,2]
[372936558,1752814248833,-461.22608787,0.00016986,2]
[372936559,1752814248843,-460.0,0.00016986,2]
[372936560,1752814248852,-460.0,0.00016986,2]
[372936561,1752814248861,-460.0,0.00016986,2]
[372936562,1752814248871,-465.3072291,0.00016986,2]
[372936563,1752814248880,-460.0,0.00016986,2]
[372936564,1752814248890,-460.0,0.00016986,2]
[372936565,1752814248899,-445.67572009,0.00016986,2]
[372936566,1752814248909,-460.0,0.00016986,2]
[372936567,1752814248919,-460.0,0.00016986,2]
[372936568,1752814248929,-460.0,0.00016986,2]
[372936569,1752814248939,-460.0,0.00016986,2]
[372936570,1752814248949,-460.0,0.00016986,2]
[372936571,1752814248958,-460.0,0.00016986,2]
[372936572,1752814248968,-460.0,0.00016986,2]
[372936573,1752814248978,-460.0,0.00016986,2]
[372936574,1752814248987,-460.0,0.00016986,2]
[372936575,1752814248997,-460.0,0.00016986,2]
[372936576,1752814249007,-460.6656135,0.00016986,2]
[372936577,1752814249016,-617.58,0.00016986,2]
[372936578,1752814249025,-460.0,0.00016986,2]
[372936579,1752814249035,-460.0,0.00016986,2]
[372936580,1752814249044,-460.0,0.00016986,2]
[372936581,1752814249056,-460.0,0.00016986,2]
[372936582,1752814249066,-460.0,0.00016986,2]
[372936583,1752814249075,-460.0,0.00016986,2]
[372936584,1752814249084,-208.72027163,0.00016986,2]
[372936585,1752814249094,-590.46177256,0.00016986,2]
[372936586,1752814249103,-460.0,0.00016986,2]
[372936587,1752814249116,-962.22,0.00016986,2]
[372936588,1752814249126,-460.0,0.00016986,2]
[372936589,1752814249136,-460.0,0.00016986,2]
[372936590,1752814249146,-996.21,0.00016986,2]
[372936591,1752814249155,-460.0,0.00016986,2]
[372936592,1752814249165,-460.0,0.00016986,2]
[372936593,1752814249175,-460.0,0.00016986,2]
[372936594,1752814249185,-460.0,0.00016986,2]
[372936595,1752814249195,-460.0,0.00016986,2]
[372936596,1752814249205,-460.0,0.00016986,2]
[372936597,1752814249215,-460.0,0.00016986,2]
[372936598,1752814249225,-504.97,0.00016986,2]
[372936599,1752814249235,-460.0,0.00016986,2]
[372936600,1752814249246,-460.0,0.00016986,2]
[372936601,1752814249256,-460.0,0.00016986,2]
[372936602,1752814249265,-460.0,0.00016986,2]
[372936603,1752814249275,-460.0,0.00016986,2]
[372936604,1752814249285,-460.0,0.00016986,2]
[372936605,1752814249295,-460.0,0.00016986,2]
[372936606,1752814249305,-460.0,0.00016986,2]
[372936607,1752814249314,-460.0,0.00016986,2]
[372936608,1752814249325,-462.73653969,0.00016986,2]
[372936609,1752814249334,-460.0,0.00016986,2]
[372936610,1752814249344,-471.94,0.00016986,2]
[372936611,1752814249353,-460.0,0.00016986,2]
[372936612,1752814249363,-465.84683855,0.00016986,2]
[372936613,1752814249372,-557.15,0.00016986,2]
[372936614,1752814249382,-460.0,0.00016986,2]
[372936615,1752814249392,-460.0,0.00016986,2]
[372936616,1752814249401,-460.0,0.00016986,2]
[372936617,1752814249411,-460.0,0.00016986,2]
[372936618,1752814249421,-633.99,0.00016986,2]
[372936619,1752814249431,-216.64508203,0.00016986,2]
[372936620,1752814249440,-460.0,0.00016986,2]
[372936621,1752814249450,-460.0,0.00016986,2]
[372936622,1752814249460,-460.0,0.00016986,2]
[372936623,1752814249470,-460.0,0.00016986,2]
[372936624,1752814249479,-462.48262276,0.00016986,2]
[372936625,1752814249488,-335.54640665,0.00016986,2]
[372936626,1752814249498,-480.02,0.00016986,2]
[372936627,1752814249507,-460.0,0.00016986,2]
[372936628,1752814249516,-460.0,0.00016986,2]
[372936629,1752814249525,-745.89,0.00016986,2]
[372936630,1752814249535,-907.33,0.00016986,2]
[372936631,1752814249545,-460.0,0.00016986,2]
[372936632,1752814249554,-638.44,0.00016986,2]
[372936633,1752814249563,-460.0,0.00016986,2]
[372936634,1752814249575,-1126.45,0.00016986,2]
[372936635,1752814249584,-902.44,0.00016986,2]
[372936636,1752814249594,-600.0834964,0.00016986,2]
[372936637,1752814249604,-460.0,0.00016986,2]
[372936638,1752814249613,-460.0,0.00016986,2]
[372936639,1752814249623,-686.15,0.00016986,2]
[372936640,1752814249632,-461.43754657,0.00016986,2]
[372936641,1752814249642,-460.0,0.00016986,2]
[372936642,1752814249651,-460.0,0.00016986,2]
[372936643,1752814249660,-460.0,0.00016986,2]
[372936644,1752814249670,-460.0,0.00016986,2]
[372936645,1752814249679,-296.25392541,0.00016986,2]
[372936646,1752814249688,-460.0,0.00016986,2]
[372936647,1752814249697,-460.0,0.00016986,2]
[372936648,1752814249706,-474.5763334,0.00016986,2]
[372936649,1752814249863,-460.0,0.00016986,2]
[372936650,1752814249873,-460.0,0.00016986,2]
[372936651,1752814249882,-460.0,0.00016986,2]
[372936652,1752814249891,-450.57019887,0.00016986,2]
[372936653,1752814249900,-654.1,0.00016986,2]
[372936654,1752814249909,-555.02,0.00016986,2]
[372936655,1752814249918,-460.0,0.00016986,2]
[372936656,1752814249927,-712.9,0.00016986,2]
[372936657,1752814249936,-460.0,0.00016986,2]
[372936658,1752814249946,-465.47,0.00016986,2]
[372936659,1752814249955,-460.0,0.00016986,2]
[372936660,1752814249966,-460.0,0.00016986,2]
[372936661,1752814249976,-463.27370372,0.00016986,2]
[372936662,1752814249985,-460.0,0.00016986,2]
[372936663,1752814249995,-460.0,0.00016986,2]
[372936664,1752814250004,-460.0,0.00016986,2]
[372936665,1752814250013,-460.0,0.00016986,2]
[372936666,1752814250023,-460.0,0.00016986,2]
[372936667,1752814250032,-460.0,0.00016986,2]
[372936668,1752814250042,-462.34,0.00016986,2]
[372936669,1752814250052,-460.0,0.00016986,2]
[372936670,1752814250063,-460.0,0.00016986,2]
[372936671,1752814250073,-460.0,0.00016986,2]
[372936672,1752814250084,-460.0,0.00016986,2]
[372936673,1752814250094,-460.0,0.00016986,2]
[372936674,1752814250105,-460.0,0.00016986,2]
[372936675,1752814250114,-683.36,0.00016986,2]
[372936676,1752814250124,-460.0,0.00016986,2]
[372936677,1752814250133,-460.0,0.00016986,2]
[372936678,1752814250143,-2418.55,0.00016986,2]
[372936679,1752814250152,-460.0,0.00016986,2]
[372936680,1752814250161,-460.0,0.00016986,2]
[372936681,1752814250171,-460.0,0.00016986,2]
[372936682,1752814250181,-460.99258252,0.00016986,2]
[372936683,1752814250191,-460.0,0.00016986,2]
[372936684,1752814250202,-1045.61,0.00016986,2]
[372936685,1752814250212,-460.0,0.00016986,2]
[372936686,1752814250221,-538.01,0.00016986,2]
[372936687,1752814250230,-460.0,0.00016986,2]
[372936688,1752814250240,-460.0,0.00016986,2]
[372936689,1752814250250,-460.0,0.00016986,2]
[372936690,1752814250260,-460.0,0.00016986,2]
[372936691,1752814250269,-460.0,0.00016986,2]
[372936692,1752814250279,-460.0,0.00016986,2]
[372936693,1752814250289,-524.45075327,0.00016986,2]
[372936694,1752814250298,-560.07,0.00016986,2]
[372936695,1752814250308,-460.0,0.00016986,2]
[372936696,1752814250317,-460.0,0.00016986,2]
[372936697,1752814250327,-460.0,0.00016986,2]
[372936698,1752814250337,-686.49,0.00016986,2]
[372936699,1752814250346,-460.0,0.00016986,2]
[372936700,1752814250356,-460.0,0.00016986,2]
[372936701,1752814250368,-460.0,0.00016986,2]
[372936702,1752814250378,-460.0,0.00016986,2]
[372936703,1752814250388,-460.0,0.00016986,2]
[372936704,1752814250398,-460.0,0.00016986,2]
[372936705,1752814250417,-460.0,0.00016986,2]
[372936706,1752814250429,-883.96,0.00016986,2]
[372936707,1752814250440,-500.0,0.00016986,2]
[372936708,1752814250451,-460.0,0.00016986,2]
[372936709,1752814250462,-460.0,0.00016986,2]
[372936710,1752814250472,-460.0,0.00016986,2]
[372936711,1752814250482,-460.0,0.00016986,2]
[372936712,1752814250492,-460.0,0.00016986,2]
[372936713,1752814250502,-460.0,0.00016986,2]
[372936714,1752814250512,-460.0,0.00016986,2]
[372936715,1752814250522,-1347.37,0.00016986,2]
[372936716,1752814250533,-951.1,0.00016986,2]
[372936717,1752814250542,-460.0,0.00016986,2]
[372936718,1752814250553,-642.72,0.00016986,2]
[372936719,1752814250563,-460.0,0.00016986,2]
[372936720,1752814250573,-460.0,0.00016986,2]
[372936721,1752814250583,-460.0,0.00016986,2]
[372936722,1752814250593,-460.0,0.00016986,2]
[372936723,1752814250604,-460.0,0.00016986,2]
[372936724,1752814250614,-460.0,0.00016986,2]
[372936725,1752814250624,-460.0,0.00016986,2]
[372936726,1752814250634,-460.0,0.00016986,2]
[372936727,1752814250644,-460.0,0.00016986,2]
[372936728,1752814250654,-460.0,0.00016986,2]
[372936729,1752814250664,-508.2,0.00016986,2]
[372936730,1752814250674,-460.0,0.00016986,2]
[372936731,1752814250684,-460.0,0.00016986,2]
[372936732,1752814250694,-855.25,0.00016986,2]
[372936733,1752814250704,-618.09,0.00016986,2]
[372936734,1752814250714,-460.0,0.00016986,2]
[372936735,1752814250725,-460.0,0.00016986,2]
[372936736,1752814250735,-460.0,0.00016986,2]
[372936737,1752814250746,-4686.52,0.00016986,2]
[372936738,1752814250761,-460.0,0.00016986,2]
[372936739,1752814250771,-460.0,0.00016986,2]
[372936740,1752814250780,-186.85876561,0.00016986,2]
[372936741,1752814250790,-460.0,0.00016986,2]
[372936742,1752814250801,-723.7,0.00016986,2]
[372936743,1752814250811,-460.0,0.00016986,2]
[372936744,1752814250821,-460.0,0.00016986,2]
[372936745,1752814250832,-460.0,0.00016986,2]
[372936746,1752814250842,-460.0,0.00016986,2]
[372936747,1752814250852,-460.0,0.00016986,2]
[372936748,1752814250862,-460.0,0.00016986,2]
[372936749,1752814250872,-460.0,0.00016986,2]
[372936750,1752814250882,-460.0,0.00016986,2]
[372936751,1752814250892,-460.0,0.00016986,2]
[372936752,1752814250902,-460.0,0.00016986,2]
[372936753,1752814250912,-460.0,0.00016986,2]
[372936754,1752814250922,-1372.5,0.00016986,2]
[372936755,1752814250932,-460.0,0.00016986,2]
[372936756,1752814250942,-898.43,0.00016986,2]
[372936757,1752814250952,-3660.04,0.00016986,2]
[372936758,1752814250963,-460.0,0.00016986,2]
[372936759,1752814250973,-908.6,0.00016986,2]
[372936760,1752814250982,-3275.21,0.00016986,2]
[372936761,1752814250992,-1144.81,0.00016986,2]
[372936762,1752814251007,-469.61512153,0.00016986,2]
[372936763,1752814251017,-460.0,0.00016986,2]
[372936764,1752814251027,-460.0,0.00016986,2]
[372936765,1752814251036,-899.51,0.00016986,2]
[372936766,1752814251046,-460.0,0.00016986,2]
[372936767,1752814251055,-460.0,0.00016986,2]
[372936768,1752814251064,-460.0,0.00016986,2]
[372936769,1752814251074,-460.0,0.00016986,2]
[372936770,1752814251085,-460.0,0.00016986,2]
[372936771,1752814251095,-539.40311699,0.00016986,2]
[372936772,1752814251105,-460.0,0.00016986,2]
[372936773,1752814251115,-884.48,0.00016986,2]
[372936774,1752814251124,-460.0,0.00016986,2]
[372936775,1752814251134,-965.48,0.00016986,2]
[372936776,1752814251144,-888.06,0.00016986,2]
[372936777,1752814251153,-766.66,0.00016986,2]
[372936778,1752814251164,-460.0,0.00016986,2]
[372936779,1752814251173,-460.0,0.00016986,2]
[372936780,1752814251182,-460.0,0.00016986,2]
[372936781,1752814251192,-460.0,0.00016986,2]
[372936782,1752814251201,-460.0,0.00016986,2]
[372936783,1752814251211,-460.0,0.00016986,2]
[372936784,1752814251220,-1451.87,0.00016986,2]
[372936785,1752814251229,-460.0,0.00016986,2]
[372936786,1752814251239,-460.0,0.00016986,2]
[372936787,1752814251248,-460.0,0.00016986,2]
[372936788,1752814251258,-460.0,0.00016986,2]
[372936789,1752814251267,-409.81821519,0.00016986,2]
[372936790,1752814251277,-460.0,0.00016986,2]
[372936791,1752814251286,-789.94,0.00016986,2]
[372936792,1752814251295,-3558.83,0.00016986,2]
[372936793,1752814251305,-1037.24,0.00016986,2]
[372936794,1752814251315,-460.0,0.00016986,2]
[372936795,1752814251325,-652.7,0.00016986,2]
[372936796,1752814251334,-460.0,0.00016986,2]
[372936797,1752814251344,-460.0,0.00016986,2]
[372936798,1752814251354,-5829.63,0.00016986,2]
[372936799,1752814251363,-460.0,0.00016986,2]
[372936800,1752814251372,-550.74010506,0.00016986,2]
[372936801,1752814251382,-460.0,0.00016986,2]
[372936802,1752814251391,-460.0,0.00016986,2]
[372936803,1752814251401,-460.0,0.00016986,2]
[372936804,1752814251410,-460.0,0.00016986,2]
[372936805,1752814251422,-460.0,0.00016986,2]
[372936806,1752814251432,-2475.6,0.00016986,2]
[372936807,1752814251441,-460.0,0.00016986,2]
[372936808,1752814251451,-460.0,0.00016986,2]
[372936809,1752814251460,-921.62,0.00016986,2]
[372936810,1752814251470,-460.0,0.00016986,2]
[372936811,1752814251484,-727.58,0.00016986,2]
[372936812,1752814251494,-596.94653153,0.00016986,2]
[372936813,1752814251504,-460.0,0.00016986,2]
[372936814,1752814251514,-2187.72,0.00016986,2]
[372936815,1752814251524,-460.0,0.00016986,2]
[372936816,1752814251534,-460.0,0.00016986,2]
[372936817,1752814251544,-1653.45,0.00016986,2]
[372936818,1752814251554,-785.77,0.00016986,2]
[372936819,1752814251563,-460.0,0.00016986,2]
[372936820,1752814251574,-460.0,0.00016986,2]
[372936821,1752814251583,-698.36,0.00016986,2]
[372936822,1752814251593,-1105.74,0.00016986,2]
[372936823,1752814251604,-460.0,0.00016986,2]
[372936824,1752814251613,-822.88,0.00016986,2]
[372936825,1752814251623,-1074.47,0.00016986,2]
[372936826,1752814251633,-656.95,0.00016986,2]
[372936827,1752814251643,-460.0,0.00016986,2]
[372936828,1752814251654,-460.0,0.00016986,2]
[372936829,1752814251664,-460.0,0.00016986,2]
[372936830,1752814251674,-460.0,0.00016986,2]
[372936831,1752814251683,-460.0,0.00016986,2]
[372936832,1752814251693,-460.0,0.00016986,2]
[372936833,1752814251703,-1003.73,0.00016986,2]
[372936834,1752814251714,-460.0,0.00016986,2]
[372936835,1752814251724,-460.0,0.00016986,2]
[372936836,1752814251734,-460.0,0.00016986,2]
[372936837,1752814251744,-809.59,0.00016986,2]
[372936838,1752814251756,-774.39,0.00016986,2]
[372936839,1752814251766,-460.0,0.00016986,2]
[372936840,1752814251775,-575.36,0.00016986,2]
[372936841,1752814251785,-460.0,0.00016986,2]
[372936842,1752814251795,-460.0,0.00016986,2]
[372936843,1752814251805,-460.0,0.00016986,2]